[Event "Betsys MČR v online bleskovém šachu 2021"]
[Site "Chess.com"]
[Date "2021.04.17"]
[Round "8"]
[White "TommyLud"]
[Black "tudlenudle"]
[Result "0-1"]
[WhiteElo "2155"]
[BlackElo "1954"]
[TimeControl "180+1"]
[EndTime "10:21:20 PDT"]
[Termination "Uživatel tudlenudle zvítězil na čas"]

1. d4 {[%clk 0:03:00.9]} 1... d5 {[%clk 0:03:00]} 2. c4 {[%clk 0:03:01]} 2... e6
{[%clk 0:03:00.5]} 3. Nc3 {[%clk 0:03:01.2]} 3... Nf6 {[%clk 0:03:01]} 4. Nf3
{[%clk 0:03:01.5]} 4... dxc4 {[%clk 0:03:01.1]} 5. e4 {[%clk 0:03:00.1]} 5...
Bb4 {[%clk 0:03:00.7]} 6. Bg5 {[%clk 0:02:59.7]} 6... c5 {[%clk 0:02:54.6]} 7.
Bxc4 {[%clk 0:02:59.3]} 7... cxd4 {[%clk 0:02:52.2]} 8. Nxd4 {[%clk 0:02:59]}
8... Bxc3+ {[%clk 0:02:52.7]} 9. bxc3 {[%clk 0:02:58.4]} 9... Qa5 {[%clk
0:02:53.2]} 10. Bxf6 {[%clk 0:02:39.6]} 10... Qxc3+ {[%clk 0:02:46.2]} 11. Kf1
{[%clk 0:02:39.1]} 11... gxf6 {[%clk 0:02:44.2]} 12. Rc1 {[%clk 0:02:37.2]}
12... Qb4 {[%clk 0:02:23.2]} 13. Qh5 {[%clk 0:01:33.4]} 13... Ke7 {[%clk
0:01:53.6]} 14. e5 {[%clk 0:01:32.2]} 14... fxe5 {[%clk 0:01:37.6]} 15. Qxe5
{[%clk 0:01:30.5]} 15... Rd8 {[%clk 0:01:37.8]} 16. Nf5+ {[%clk 0:01:18.1]}
16... Ke8 {[%clk 0:01:29.1]} 17. Bb5+ {[%clk 0:00:50.7]} 17... Bd7 {[%clk
0:01:16.8]} 18. Nd6+ {[%clk 0:00:12]} 18... Ke7 {[%clk 0:01:16.2]} 19. Nf5+
{[%clk 0:00:05.5]} 19... Ke8 {[%clk 0:01:12.3]} 20. Bxd7+ {[%clk 0:00:02.1]}
20... Nxd7 {[%clk 0:01:10.1]} 21. Qh8+ {[%clk 0:00:01.9]} 21... Nf8 {[%clk
0:00:39.5]} 22. Qe5 {[%clk 0:00:02]} 22... Qd2 {[%clk 0:00:31.4]} 23. Re1 {[%clk
0:00:01]} 23... Qd3+ {[%clk 0:00:30.4]} 24. Kg1 {[%clk 0:00:01.2]} 24... Rd5
{[%clk 0:00:22]} 25. Ng7+ {[%clk 0:00:01.3]} 25... Ke7 {[%clk 0:00:20.6]} 26.
Qf4 {[%clk 0:00:01.6]} 26... Ng6 {[%clk 0:00:17.1]} 27. Qg4 {[%clk 0:00:01.9]}
27... Kf8 {[%clk 0:00:14]} 28. h4 {[%clk 0:00:01.6]} 28... Kxg7 {[%clk
0:00:13.4]} 29. h5 {[%clk 0:00:02.1]} 29... Qd2 {[%clk 0:00:11.1]} 30. Rf1
{[%clk 0:00:01.8]} 30... Qf4 {[%clk 0:00:07]} 0-1

[Event "Betsys MČR v online bleskovém šachu 2021"]
[Site "Chess.com"]
[Date "2021.04.17"]
[Round "8"]
[White "Dasty78"]
[Black "youhy"]
[Result "1-0"]
[WhiteElo "2019"]
[BlackElo "1779"]
[TimeControl "180+1"]
[EndTime "10:21:21 PDT"]
[Termination "Uživatel Dasty78 zvítězil na čas"]

1. e4 {[%clk 0:02:59.9]} 1... c5 {[%clk 0:02:38.9]} 2. Nf3 {[%clk 0:02:58.6]}
2... e6 {[%clk 0:02:37.8]} 3. d4 {[%clk 0:02:58.2]} 3... cxd4 {[%clk 0:02:37.3]}
4. Nxd4 {[%clk 0:02:58.4]} 4... Nf6 {[%clk 0:02:37.6]} 5. Nc3 {[%clk 0:02:58.3]}
5... Nc6 {[%clk 0:02:36.5]} 6. g3 {[%clk 0:02:57.6]} 6... Bb4 {[%clk 0:02:31.5]}
7. Nxc6 {[%clk 0:02:45.8]} 7... bxc6 {[%clk 0:02:30.2]} 8. e5 {[%clk 0:02:45.8]}
8... Ne4 {[%clk 0:02:17.7]} 9. Bd2 {[%clk 0:02:23.1]} 9... Nxc3 {[%clk
0:02:06.4]} 10. bxc3 {[%clk 0:02:20.5]} 10... Bc5 {[%clk 0:02:04.8]} 11. Bg2
{[%clk 0:02:18.8]} 11... Qc7 {[%clk 0:01:55.4]} 12. Bf4 {[%clk 0:01:33.6]} 12...
g5 {[%clk 0:01:34.3]} 13. Be3 {[%clk 0:00:56.7]} 13... Bxe3 {[%clk 0:01:28.1]}
14. fxe3 {[%clk 0:00:56.5]} 14... Qxe5 {[%clk 0:01:27.4]} 15. O-O {[%clk
0:00:55.5]} 15... Qxe3+ {[%clk 0:01:13.8]} 16. Kh1 {[%clk 0:00:55.6]} 16... d5
{[%clk 0:01:04]} 17. Qh5 {[%clk 0:00:51.6]} 17... O-O {[%clk 0:00:56.6]} 18. Rf3
{[%clk 0:00:49.4]} 18... Qe5 {[%clk 0:00:48.7]} 19. Raf1 {[%clk 0:00:47.5]}
19... f6 {[%clk 0:00:38.8]} 20. h4 {[%clk 0:00:43.6]} 20... Ba6 {[%clk
0:00:33.9]} 21. R1f2 {[%clk 0:00:38.4]} 21... gxh4 {[%clk 0:00:30.9]} 22. Qxh4
{[%clk 0:00:34]} 22... Qg5 {[%clk 0:00:25.6]} 23. Qa4 {[%clk 0:00:26.8]} 23...
Bc4 {[%clk 0:00:20.5]} 24. Bh3 {[%clk 0:00:22.9]} 24... Rae8 {[%clk 0:00:17.7]}
25. Qxc6 {[%clk 0:00:22.1]} 25... Qc1+ {[%clk 0:00:14.5]} 26. Kg2 {[%clk
0:00:20.6]} 26... Qe1 {[%clk 0:00:12.9]} 27. Rxf6 {[%clk 0:00:16.6]} 27... Qe4+
{[%clk 0:00:10.6]} 28. Kh2 {[%clk 0:00:14.2]} 28... Rxf6 {[%clk 0:00:05.6]} 29.
Qxe8+ {[%clk 0:00:13.7]} 29... Kg7 {[%clk 0:00:05.3]} 30. Qe7+ {[%clk
0:00:13.9]} 30... Kh6 {[%clk 0:00:03.1]} 31. Rxf6+ {[%clk 0:00:11.7]} 31... Kh5
{[%clk 0:00:02.5]} 32. Qf7+ {[%clk 0:00:10.3]} 32... Kg5 {[%clk 0:00:01.4]} 33.
Qg7+ {[%clk 0:00:10.3]} 1-0

[Event "Betsys MČR v online bleskovém šachu 2021"]
[Site "Chess.com"]
[Date "2021.04.17"]
[Round "8"]
[White "karimaster100"]
[Black "machonza"]
[Result "1-0"]
[WhiteElo "2246"]
[BlackElo "1989"]
[TimeControl "180+1"]
[EndTime "10:21:23 PDT"]
[Termination "Uživatel karimaster100 zvítězil na čas"]

1. Nf3 {[%clk 0:03:00.9]} 1... c5 {[%clk 0:02:58]} 2. c4 {[%clk 0:02:59.7]} 2...
b6 {[%clk 0:02:52.4]} 3. g3 {[%clk 0:02:59.4]} 3... Bb7 {[%clk 0:02:52.2]} 4.
Bg2 {[%clk 0:02:59.9]} 4... Nf6 {[%clk 0:02:52.4]} 5. O-O {[%clk 0:02:59.9]}
5... e6 {[%clk 0:02:52.4]} 6. Nc3 {[%clk 0:03:00.3]} 6... Be7 {[%clk 0:02:52]}
7. d4 {[%clk 0:03:00.8]} 7... cxd4 {[%clk 0:02:51.7]} 8. Qxd4 {[%clk 0:03:01.4]}
8... a6 {[%clk 0:02:46.7]} 9. Bf4 {[%clk 0:02:48.3]} 9... Nc6 {[%clk 0:02:43.6]}
10. Qd2 {[%clk 0:02:47.8]} 10... d6 {[%clk 0:02:14]} 11. Rfd1 {[%clk 0:02:44.5]}
11... e5 {[%clk 0:02:12.2]} 12. Bg5 {[%clk 0:02:44.4]} 12... Qc7 {[%clk
0:01:59.8]} 13. Bxf6 {[%clk 0:02:42.2]} 13... Bxf6 {[%clk 0:01:58.7]} 14. Nd5
{[%clk 0:02:41.7]} 14... Qd8 {[%clk 0:01:57.2]} 15. Nxf6+ {[%clk 0:02:39.4]}
15... Qxf6 {[%clk 0:01:56.7]} 16. Qxd6 {[%clk 0:02:39.6]} 16... Qxd6 {[%clk
0:01:51.6]} 17. Rxd6 {[%clk 0:02:31]} 17... Rb8 {[%clk 0:01:40.6]} 18. Rad1
{[%clk 0:02:27.5]} 18... O-O {[%clk 0:01:39.6]} 19. b3 {[%clk 0:02:21.3]} 19...
f6 {[%clk 0:01:38.2]} 20. e3 {[%clk 0:02:12.9]} 20... Rfe8 {[%clk 0:01:27.3]}
21. Nh4 {[%clk 0:02:11.4]} 21... Ne7 {[%clk 0:01:22.3]} 22. Rxb6 {[%clk
0:02:04.9]} 22... Bxg2 {[%clk 0:01:21.2]} 23. Rxb8 {[%clk 0:02:04.5]} 23... Rxb8
{[%clk 0:01:20.5]} 24. Nxg2 {[%clk 0:02:01.7]} 24... a5 {[%clk 0:01:19.9]} 25.
Rd7 {[%clk 0:01:59.3]} 25... Kf7 {[%clk 0:01:18.8]} 26. e4 {[%clk 0:01:50.1]}
26... a4 {[%clk 0:01:17]} 27. Ne3 {[%clk 0:01:48.9]} 27... Ke6 {[%clk
0:01:12.3]} 28. Ra7 {[%clk 0:01:44.5]} 28... axb3 {[%clk 0:01:11.7]} 29. axb3
{[%clk 0:01:45]} 29... Rxb3 {[%clk 0:01:11.2]} 30. Nd5 {[%clk 0:01:45.5]} 30...
Rb1+ {[%clk 0:01:02.2]} 31. Kg2 {[%clk 0:01:44.2]} 31... Nc6 {[%clk 0:00:56.6]}
32. Rxg7 {[%clk 0:01:43.3]} 32... Rc1 {[%clk 0:00:54.3]} 33. Rxh7 {[%clk
0:01:43.2]} 33... Rxc4 {[%clk 0:00:53.7]} 34. Rh6 {[%clk 0:01:31.9]} 34... Rxe4
{[%clk 0:00:51.5]} 35. Nxf6 {[%clk 0:01:31.3]} 35... Re2 {[%clk 0:00:49.8]} 36.
Ne4+ {[%clk 0:01:22.1]} 36... Kd7 {[%clk 0:00:14.2]} 37. Nc5+ {[%clk 0:01:16.5]}
37... Kc7 {[%clk 0:00:13.4]} 38. h4 {[%clk 0:01:15.5]} 38... e4 {[%clk 0:00:12]}
39. Re6 {[%clk 0:01:09.5]} 39... Kb6 {[%clk 0:00:09.7]} 40. Rxe4 {[%clk
0:01:06.3]} 40... Rc2 {[%clk 0:00:07.8]} 41. Nd3 {[%clk 0:01:02.6]} 41... Kc7
{[%clk 0:00:06.9]} 42. h5 {[%clk 0:01:01.9]} 42... Kd6 {[%clk 0:00:06.5]} 43. h6
{[%clk 0:01:01.2]} 43... Ra2 {[%clk 0:00:05.6]} 44. Re8 {[%clk 0:00:58.2]} 44...
Ra7 {[%clk 0:00:04.9]} 45. g4 {[%clk 0:00:54.7]} 45... Rh7 {[%clk 0:00:03.7]}
46. g5 {[%clk 0:00:54.2]} 46... Ne7 {[%clk 0:00:03.2]} 47. f4 {[%clk 0:00:50.2]}
47... Ng6 {[%clk 0:00:01.4]} 48. Kg3 {[%clk 0:00:46.9]} 1-0

[Event "Betsys MČR v online bleskovém šachu 2021"]
[Site "Chess.com"]
[Date "2021.04.17"]
[Round "8"]
[White "pepca"]
[Black "polik1112"]
[Result "1-0"]
[WhiteElo "1530"]
[BlackElo "1328"]
[TimeControl "180+1"]
[EndTime "10:21:26 PDT"]
[Termination "Uživatel pepca zvítězil na čas"]

1. e4 {[%clk 0:03:00.9]} 1... e6 {[%clk 0:02:58.7]} 2. d4 {[%clk 0:03:00.1]}
2... d5 {[%clk 0:02:57.6]} 3. Nc3 {[%clk 0:02:56.3]} 3... Bb4 {[%clk 0:02:49.2]}
4. exd5 {[%clk 0:02:51.5]} 4... exd5 {[%clk 0:02:46.3]} 5. Nf3 {[%clk
0:02:51.3]} 5... Nf6 {[%clk 0:02:45.2]} 6. Bg5 {[%clk 0:02:49.9]} 6... O-O
{[%clk 0:02:44.3]} 7. Be2 {[%clk 0:02:49]} 7... c6 {[%clk 0:02:37.9]} 8. O-O
{[%clk 0:02:48.2]} 8... Bg4 {[%clk 0:02:36.3]} 9. Ne5 {[%clk 0:02:37.6]} 9...
Bxe2 {[%clk 0:02:32.2]} 10. Nxe2 {[%clk 0:02:32]} 10... h6 {[%clk 0:02:20.9]}
11. Bh4 {[%clk 0:02:30.2]} 11... Be7 {[%clk 0:02:17.5]} 12. c4 {[%clk 0:02:19]}
12... dxc4 {[%clk 0:02:12.7]} 13. Nxc4 {[%clk 0:02:18.4]} 13... Nbd7 {[%clk
0:02:11.3]} 14. Ne3 {[%clk 0:02:13.4]} 14... Qc7 {[%clk 0:01:59.9]} 15. Nf5
{[%clk 0:02:11.5]} 15... Bd8 {[%clk 0:01:52.9]} 16. Bg3 {[%clk 0:02:08.4]} 16...
Qc8 {[%clk 0:01:52.5]} 17. Nd6 {[%clk 0:01:48.7]} 17... Qc7 {[%clk 0:01:42.2]}
18. Nxf7 {[%clk 0:01:40.3]} 18... Qb6 {[%clk 0:01:34.8]} 19. Nd6 {[%clk
0:01:35.8]} 19... Bc7 {[%clk 0:01:17]} 20. Nc4 {[%clk 0:01:29.6]} 20... Qa6
{[%clk 0:00:56.6]} 21. Qb3 {[%clk 0:01:18.9]} 21... Bxg3 {[%clk 0:00:50.9]} 22.
fxg3 {[%clk 0:01:17.3]} 22... Rfe8 {[%clk 0:00:44.4]} 23. Nd6+ {[%clk
0:01:14.6]} 23... Kh8 {[%clk 0:00:27.7]} 24. Nxe8 {[%clk 0:01:09.7]} 24... Rxe8
{[%clk 0:00:28.6]} 25. Nf4 {[%clk 0:01:06.9]} 25... Nb6 {[%clk 0:00:19.9]} 26.
Rae1 {[%clk 0:00:56.7]} 26... Rxe1 {[%clk 0:00:13.8]} 27. Rxe1 {[%clk
0:00:55.9]} 27... Nbd5 {[%clk 0:00:11.3]} 28. Ng6+ {[%clk 0:00:42.8]} 28... Kh7
{[%clk 0:00:08.7]} 29. Nf8+ {[%clk 0:00:40.7]} 29... Kg8 {[%clk 0:00:06]} 30.
Ne6 {[%clk 0:00:36.1]} 30... Qa5 {[%clk 0:00:04.9]} 31. Kf2 {[%clk 0:00:21.6]}
31... Ng4+ {[%clk 0:00:02.4]} 32. Ke2 {[%clk 0:00:17.3]} 32... Nxh2 {[%clk
0:00:02.3]} 33. Nc5 {[%clk 0:00:10.4]} 33... Ng4 {[%clk 0:00:01.9]} 34. Nxb7
{[%clk 0:00:09.6]} 1-0

[Event "Betsys MČR v online bleskovém šachu 2021"]
[Site "Chess.com"]
[Date "2021.04.17"]
[Round "8"]
[White "Listro33"]
[Black "PremetFugas"]
[Result "0-1"]
[WhiteElo "1863"]
[BlackElo "2133"]
[TimeControl "180+1"]
[EndTime "10:21:27 PDT"]
[Termination "Uživatel PremetFugas zvítězil na čas"]

1. d4 {[%clk 0:03:00.9]} 1... Nf6 {[%clk 0:02:54.4]} 2. Bf4 {[%clk 0:02:58.7]}
2... d6 {[%clk 0:02:51.7]} 3. e3 {[%clk 0:02:50.9]} 3... g6 {[%clk 0:02:50.3]}
4. Nf3 {[%clk 0:02:50.2]} 4... Bg7 {[%clk 0:02:49.2]} 5. Be2 {[%clk 0:02:50.1]}
5... O-O {[%clk 0:02:48.6]} 6. O-O {[%clk 0:02:50]} 6... Nbd7 {[%clk 0:02:40.7]}
7. h3 {[%clk 0:02:48.5]} 7... c6 {[%clk 0:02:39.7]} 8. Bh2 {[%clk 0:02:38.2]}
8... Qc7 {[%clk 0:02:30.6]} 9. c4 {[%clk 0:02:36.3]} 9... Re8 {[%clk 0:02:25]}
10. Nc3 {[%clk 0:02:35.6]} 10... e5 {[%clk 0:02:18.2]} 11. Rc1 {[%clk
0:02:33.7]} 11... Nf8 {[%clk 0:02:04.7]} 12. b4 {[%clk 0:02:20.2]} 12... a5
{[%clk 0:01:51.3]} 13. b5 {[%clk 0:01:58.9]} 13... c5 {[%clk 0:01:38.5]} 14.
dxe5 {[%clk 0:01:43.2]} 14... dxe5 {[%clk 0:01:37.5]} 15. Qb3 {[%clk 0:01:42.8]}
15... b6 {[%clk 0:01:33]} 16. Rfd1 {[%clk 0:01:37.2]} 16... Bb7 {[%clk
0:01:29.9]} 17. a4 {[%clk 0:01:30.5]} 17... h6 {[%clk 0:01:22.5]} 18. Nd5 {[%clk
0:01:00.7]} 18... Bxd5 {[%clk 0:01:20.3]} 19. cxd5 {[%clk 0:01:00.6]} 19... Rad8
{[%clk 0:01:13.7]} 20. Bc4 {[%clk 0:00:51.5]} 20... Re7 {[%clk 0:01:01.1]} 21.
d6 {[%clk 0:00:17]} 21... Rxd6 {[%clk 0:00:59.6]} 22. Bxe5 {[%clk 0:00:11.2]}
22... Rxd1+ {[%clk 0:00:37.3]} 23. Rxd1 {[%clk 0:00:12.1]} 23... Rxe5 {[%clk
0:00:36.7]} 24. Bxf7+ {[%clk 0:00:11.2]} 24... Kh7 {[%clk 0:00:20.1]} 25. Nxe5
{[%clk 0:00:10.4]} 25... Qxe5 {[%clk 0:00:19.9]} 26. Rd8 {[%clk 0:00:08.2]}
26... Qe7 {[%clk 0:00:18.8]} 27. Rb8 {[%clk 0:00:06.9]} 27... Qc7 {[%clk
0:00:17.8]} 28. Ra8 {[%clk 0:00:04.2]} 28... Qb7 {[%clk 0:00:16.2]} 29. Rd8
{[%clk 0:00:02.9]} 29... Qe7 {[%clk 0:00:14.5]} 30. Rd1 {[%clk 0:00:02.3]} 30...
N8d7 {[%clk 0:00:12.4]} 31. Be6 {[%clk 0:00:01.6]} 31... Ne5 {[%clk 0:00:10.2]}
32. Qd5 {[%clk 0:00:01]} 32... Nh5 {[%clk 0:00:04.1]} 0-1

[Event "Betsys MČR v online bleskovém šachu 2021"]
[Site "Chess.com"]
[Date "2021.04.17"]
[Round "8"]
[White "koky_3"]
[Black "Michaela1994"]
[Result "1-0"]
[WhiteElo "2052"]
[BlackElo "1640"]
[TimeControl "180+1"]
[EndTime "10:21:27 PDT"]
[Termination "Uživatel koky_3 zvítězil na čas"]

1. e4 {[%clk 0:03:00.9]} 1... e6 {[%clk 0:02:59.9]} 2. d4 {[%clk 0:02:59.2]}
2... d5 {[%clk 0:03:00]} 3. e5 {[%clk 0:02:59.1]} 3... c5 {[%clk 0:03:00.1]} 4.
Qg4 {[%clk 0:02:59.5]} 4... Nc6 {[%clk 0:02:48.6]} 5. Nf3 {[%clk 0:02:59.2]}
5... Qb6 {[%clk 0:02:47]} 6. a3 {[%clk 0:02:57.8]} 6... Nge7 {[%clk 0:02:46.5]}
7. Bd3 {[%clk 0:02:56.1]} 7... Ng6 {[%clk 0:02:46]} 8. Qg3 {[%clk 0:02:54.7]}
8... cxd4 {[%clk 0:02:43.7]} 9. O-O {[%clk 0:02:53.8]} 9... Be7 {[%clk
0:02:39.6]} 10. h4 {[%clk 0:02:53.3]} 10... O-O {[%clk 0:02:37.5]} 11. h5 {[%clk
0:02:53]} 11... Nh8 {[%clk 0:02:36.7]} 12. Bh6 {[%clk 0:02:51]} 12... g6 {[%clk
0:02:23.8]} 13. Bxf8 {[%clk 0:02:50.1]} 13... Bxf8 {[%clk 0:02:21.2]} 14. hxg6
{[%clk 0:02:46.6]} 14... hxg6 {[%clk 0:02:19]} 15. b4 {[%clk 0:02:42.5]} 15...
Bg7 {[%clk 0:02:11]} 16. Nbd2 {[%clk 0:02:41.8]} 16... Qc7 {[%clk 0:02:09]} 17.
Rfe1 {[%clk 0:02:40.7]} 17... Bd7 {[%clk 0:02:05.9]} 18. Nb3 {[%clk 0:02:28.4]}
18... Be8 {[%clk 0:01:57.1]} 19. Re2 {[%clk 0:02:00.7]} 19... Ne7 {[%clk
0:01:54.8]} 20. Nbxd4 {[%clk 0:01:56.4]} 20... Qc3 {[%clk 0:01:44.9]} 21. Rae1
{[%clk 0:01:55.5]} 21... Qxa3 {[%clk 0:01:35.8]} 22. Ng5 {[%clk 0:01:54.1]}
22... Bh6 {[%clk 0:01:26.5]} 23. Qh4 {[%clk 0:01:40.1]} 23... Bxg5 {[%clk
0:01:23.7]} 24. Qxg5 {[%clk 0:01:39.4]} 24... Qxb4 {[%clk 0:01:23]} 25. Nf3
{[%clk 0:01:31.4]} 25... Nf5 {[%clk 0:01:05.2]} 26. Bxf5 {[%clk 0:01:30]} 26...
exf5 {[%clk 0:01:05]} 27. e6 {[%clk 0:01:29.1]} 27... Qg4 {[%clk 0:00:46.3]} 28.
Qf6 {[%clk 0:01:20]} 28... fxe6 {[%clk 0:00:20.3]} 29. Rxe6 {[%clk 0:01:18.2]}
29... Bf7 {[%clk 0:00:20.3]} 30. Re7 {[%clk 0:01:16.9]} 30... Rf8 {[%clk
0:00:19.6]} 31. Ne5 {[%clk 0:01:05]} 31... Qh5 {[%clk 0:00:17.8]} 32. Nxf7
{[%clk 0:01:02]} 32... Nxf7 {[%clk 0:00:16.1]} 33. Rxb7 {[%clk 0:00:59.5]} 33...
Qh6 {[%clk 0:00:12.9]} 34. Rxa7 {[%clk 0:00:56.7]} 34... Ng5 {[%clk 0:00:10.2]}
35. Qd4 {[%clk 0:00:46.1]} 35... Ne4 {[%clk 0:00:09.5]} 36. Qxd5+ {[%clk
0:00:43.6]} 36... Kh8 {[%clk 0:00:09.3]} 37. Qe5+ {[%clk 0:00:40.4]} 37... Kg8
{[%clk 0:00:09.4]} 38. f3 {[%clk 0:00:39.4]} 38... Ng5 {[%clk 0:00:05.5]} 39.
Rea1 {[%clk 0:00:35.3]} 39... Nxf3+ {[%clk 0:00:02]} 40. gxf3 {[%clk 0:00:32]}
40... Qg5+ {[%clk 0:00:02.2]} 41. Kh2 {[%clk 0:00:28.1]} 41... Qh4+ {[%clk
0:00:02.1]} 42. Kg2 {[%clk 0:00:27.8]} 42... Qg5+ {[%clk 0:00:01.3]} 43. Qg3
{[%clk 0:00:26.6]} 1-0

[Event "Betsys MČR v online bleskovém šachu 2021"]
[Site "Chess.com"]
[Date "2021.04.17"]
[Round "8"]
[White "petr812"]
[Black "Cimrman"]
[Result "0-1"]
[WhiteElo "2133"]
[BlackElo "2335"]
[TimeControl "180+1"]
[EndTime "10:21:28 PDT"]
[Termination "Uživatel Cimrman zvítězil po vzdání soupeře"]

1. e4 {[%clk 0:03:00.9]} 1... c6 {[%clk 0:03:00.2]} 2. d4 {[%clk 0:02:59.9]}
2... d5 {[%clk 0:03:01.1]} 3. exd5 {[%clk 0:03:00]} 3... cxd5 {[%clk 0:03:00.9]}
4. c4 {[%clk 0:02:59.6]} 4... Nf6 {[%clk 0:03:00.8]} 5. Nc3 {[%clk 0:02:58.6]}
5... Nc6 {[%clk 0:03:00.7]} 6. Bg5 {[%clk 0:02:56.9]} 6... dxc4 {[%clk
0:02:58.2]} 7. Bxc4 {[%clk 0:02:56.1]} 7... h6 {[%clk 0:02:48.9]} 8. Bh4 {[%clk
0:02:54.3]} 8... Qxd4 {[%clk 0:02:45.8]} 9. Qxd4 {[%clk 0:02:45.7]} 9... Nxd4
{[%clk 0:02:46.7]} 10. O-O-O {[%clk 0:02:41.4]} 10... e5 {[%clk 0:02:46.7]} 11.
f4 {[%clk 0:02:35.3]} 11... Bg4 {[%clk 0:02:45.8]} 12. Nf3 {[%clk 0:02:33.9]}
12... Rc8 {[%clk 0:02:01.9]} 13. Bxf7+ {[%clk 0:02:06.1]} 13... Kxf7 {[%clk
0:01:51.1]} 14. Nxe5+ {[%clk 0:02:05.6]} 14... Kg8 {[%clk 0:01:43.1]} 15. Rxd4
{[%clk 0:02:04.7]} 15... Be6 {[%clk 0:01:34.5]} 16. a3 {[%clk 0:01:23.1]} 16...
Bc5 {[%clk 0:01:30.1]} 17. Rd3 {[%clk 0:01:16.7]} 17... Bf5 {[%clk 0:01:18.6]}
18. Rd2 {[%clk 0:01:01.6]} 18... Be3 {[%clk 0:01:14.5]} 19. Kd1 {[%clk
0:00:40.5]} 19... Bxd2 {[%clk 0:00:57.6]} 20. Kxd2 {[%clk 0:00:38.9]} 20... Ne4+
{[%clk 0:00:54.5]} 21. Nxe4 {[%clk 0:00:37]} 21... Bxe4 {[%clk 0:00:55.4]} 22.
Rg1 {[%clk 0:00:31.6]} 22... Kh7 {[%clk 0:00:48.6]} 23. Ke3 {[%clk 0:00:30]}
23... Bc6 {[%clk 0:00:43.3]} 24. Be1 {[%clk 0:00:28.1]} 24... Rhe8 {[%clk
0:00:39.6]} 25. Bc3 {[%clk 0:00:26.4]} 25... Rcd8 {[%clk 0:00:32.8]} 26. g3
{[%clk 0:00:25]} 26... Rd6 {[%clk 0:00:26.2]} 27. Re1 {[%clk 0:00:24.3]} 27...
a6 {[%clk 0:00:24.1]} 28. Kf2 {[%clk 0:00:22.9]} 28... Bb5 {[%clk 0:00:23.3]}
29. Re3 {[%clk 0:00:21]} 29... g5 {[%clk 0:00:23.2]} 30. fxg5 {[%clk 0:00:19.5]}
30... hxg5 {[%clk 0:00:24.1]} 31. Ng4 {[%clk 0:00:18.6]} 31... Rxe3 {[%clk
0:00:19.9]} 32. Kxe3 {[%clk 0:00:18.1]} 32... Rd1 {[%clk 0:00:18.5]} 33. Nf6+
{[%clk 0:00:17]} 33... Kg6 {[%clk 0:00:18.6]} 34. Ne4 {[%clk 0:00:16.7]} 34...
Rh1 {[%clk 0:00:18.1]} 35. h4 {[%clk 0:00:15.9]} 35... gxh4 {[%clk 0:00:17.5]}
36. gxh4 {[%clk 0:00:16.8]} 36... Rxh4 {[%clk 0:00:18.3]} 37. Nd6 {[%clk
0:00:14.8]} 37... Bc6 {[%clk 0:00:15.7]} 38. Nc4 {[%clk 0:00:14.6]} 38... Rxc4
{[%clk 0:00:14.9]} 39. Kd3 {[%clk 0:00:13.7]} 39... Rh4 {[%clk 0:00:15]} 40. Ke3
{[%clk 0:00:12.7]} 40... Kf5 {[%clk 0:00:15.3]} 0-1

[Event "Betsys MČR v online bleskovém šachu 2021"]
[Site "Chess.com"]
[Date "2021.04.17"]
[Round "8"]
[White "Joanna23W"]
[Black "pedroholly22"]
[Result "1-0"]
[WhiteElo "2679"]
[BlackElo "2391"]
[TimeControl "180+1"]
[EndTime "10:21:29 PDT"]
[Termination "Uživatel Joanna23W zvítězil na čas"]

1. e4 {[%clk 0:03:00.9]} 1... c5 {[%clk 0:02:58.5]} 2. Nf3 {[%clk 0:03:00.7]}
2... Nc6 {[%clk 0:02:58]} 3. d4 {[%clk 0:03:00.8]} 3... cxd4 {[%clk 0:02:58.9]}
4. Nxd4 {[%clk 0:03:01]} 4... Nf6 {[%clk 0:02:59.4]} 5. Nc3 {[%clk 0:03:00.4]}
5... e5 {[%clk 0:02:59.4]} 6. Ndb5 {[%clk 0:03:00.3]} 6... d6 {[%clk 0:02:59.4]}
7. Bg5 {[%clk 0:02:52]} 7... a6 {[%clk 0:02:59]} 8. Na3 {[%clk 0:02:51.4]} 8...
b5 {[%clk 0:02:58.6]} 9. Bxf6 {[%clk 0:02:48.7]} 9... gxf6 {[%clk 0:02:58.1]}
10. Nd5 {[%clk 0:02:49]} 10... Bg7 {[%clk 0:02:57.9]} 11. Bd3 {[%clk 0:02:46.6]}
11... Ne7 {[%clk 0:02:52.3]} 12. Nxe7 {[%clk 0:02:45.1]} 12... Qxe7 {[%clk
0:02:51.9]} 13. O-O {[%clk 0:02:44.2]} 13... f5 {[%clk 0:02:32.8]} 14. c4 {[%clk
0:02:42]} 14... O-O {[%clk 0:02:25.7]} 15. Qh5 {[%clk 0:02:40.5]} 15... bxc4
{[%clk 0:02:17.7]} 16. Nxc4 {[%clk 0:02:39.6]} 16... d5 {[%clk 0:02:11.2]} 17.
exd5 {[%clk 0:02:32.2]} 17... e4 {[%clk 0:02:10.2]} 18. Be2 {[%clk 0:02:28.8]}
18... Rb8 {[%clk 0:02:03.2]} 19. Rad1 {[%clk 0:02:20.7]} 19... Bd7 {[%clk
0:02:00.9]} 20. d6 {[%clk 0:02:20]} 20... Qf6 {[%clk 0:01:55.5]} 21. b3 {[%clk
0:02:18.4]} 21... Rb5 {[%clk 0:01:42]} 22. Ne3 {[%clk 0:02:10.3]} 22... Re5
{[%clk 0:01:21.3]} 23. Nc4 {[%clk 0:01:52.2]} 23... Rb5 {[%clk 0:01:14]} 24. f4
{[%clk 0:01:52.3]} 24... exf3 {[%clk 0:01:06.8]} 25. Qxf3 {[%clk 0:01:50.3]}
25... Kh8 {[%clk 0:01:02.3]} 26. Bd3 {[%clk 0:01:47.5]} 26... a5 {[%clk
0:00:58.5]} 27. Ne3 {[%clk 0:01:32.3]} 27... Rc5 {[%clk 0:00:25.1]} 28. Bxf5
{[%clk 0:01:26.1]} 28... Bc6 {[%clk 0:00:18.7]} 29. Qf2 {[%clk 0:01:20.8]} 29...
Qg5 {[%clk 0:00:11.7]} 30. d7 {[%clk 0:01:15.1]} 30... Rd8 {[%clk 0:00:10.1]}
31. Bh3 {[%clk 0:01:04.7]} 31... Re5 {[%clk 0:00:05.3]} 32. Nc4 {[%clk
0:00:56.4]} 32... Re7 {[%clk 0:00:03.8]} 33. Qf5 {[%clk 0:00:51.2]} 33... Qxf5
{[%clk 0:00:01.6]} 34. Rxf5 {[%clk 0:00:48.9]} 34... Bxd7 {[%clk 0:00:02.5]} 35.
Rfd5 {[%clk 0:00:47.1]} 35... Rde8 {[%clk 0:00:01.4]} 36. Rxd7 {[%clk
0:00:46.1]} 36... Re1+ {[%clk 0:00:02.3]} 37. Rxe1 {[%clk 0:00:45.4]} 37...
Rxe1+ {[%clk 0:00:03.2]} 38. Kf2 {[%clk 0:00:45.7]} 38... Re8 {[%clk 0:00:04.1]}
39. Nxa5 {[%clk 0:00:42.6]} 39... Ra8 {[%clk 0:00:03.5]} 40. b4 {[%clk
0:00:42.8]} 40... Bf8 {[%clk 0:00:03.3]} 41. a3 {[%clk 0:00:42.6]} 41... Re8
{[%clk 0:00:03.1]} 42. Rxf7 {[%clk 0:00:42.3]} 42... Bg7 {[%clk 0:00:03.1]} 43.
Nc6 {[%clk 0:00:40.9]} 43... Ra8 {[%clk 0:00:01.9]} 44. b5 {[%clk 0:00:37.7]}
44... Rxa3 {[%clk 0:00:01.7]} 45. b6 {[%clk 0:00:38.1]} 45... Ra2+ {[%clk
0:00:02.1]} 46. Kg3 {[%clk 0:00:37.1]} 46... Ra3+ {[%clk 0:00:02]} 47. Kh4
{[%clk 0:00:36.4]} 47... Ra4+ {[%clk 0:00:02]} 48. g4 {[%clk 0:00:36.6]} 1-0